fUSD/lending_fUSD_20260612
["ID","MTS","AMOUNT","RATE_DAILY","PERIOD"]
[424896371,1781253047000,-500.0,0.00014999,2]
[424896373,1781253047000,-500.0,0.00014999,2]
[424896377,1781253047000,-189.37017155,0.00014999,2]
[424896379,1781253047000,-500.0,0.00014999,2]
[424896374,1781253047000,-556.76587923,0.00014999,2]
[424896378,1781253047000,-500.0,0.00014999,2]
[424896364,1781253047000,-1763.20440091,0.00014999,2]
[424896375,1781253047000,-500.0,0.00014999,2]
[424896370,1781253047000,-500.0,0.00014999,2]
[424896381,1781253047000,-515.12373106,0.00014999,2]
[424896380,1781253047000,-500.0,0.00014999,2]
[424896383,1781253047000,-500.0,0.00014999,2]
[424896382,1781253047000,-153.039076,0.00014999,2]
[424896386,1781253047000,-500.0,0.00014999,2]
[424896372,1781253047000,-500.0,0.00014999,2]
[424896362,1781253047000,-1763.12,0.00014999,2]
[424896353,1781253047000,-1763.12,0.00014999,2]
[424896360,1781253047000,-1763.12,0.00014999,2]
[424896385,1781253047000,-500.0,0.00014999,2]
[424896336,1781253047000,-500.0,0.00014999,2]
[424896337,1781253047000,-500.0,0.00014999,2]
[424896338,1781253047000,-500.0,0.00014999,2]
[424896339,1781253047000,-500.0,0.00014999,2]
[424896344,1781253047000,-1763.12,0.00014999,2]
[424896340,1781253047000,-500.0,0.00014999,2]
[424896346,1781253047000,-1763.12,0.00014999,2]
[424896342,1781253047000,-557.28566651,0.00014999,2]
[424896345,1781253047000,-1763.12,0.00014999,2]
[424896358,1781253047000,-1763.12,0.00014999,2]
[424896347,1781253047000,-1763.12,0.00014999,2]
[424896343,1781253047000,-1763.12,0.00014999,2]
[424896348,1781253047000,-1763.12,0.00014999,2]
[424896351,1781253047000,-1763.12,0.00014999,2]
[424896350,1781253047000,-1763.12,0.00014999,2]
[424896352,1781253047000,-1763.12,0.00014999,2]
[424896354,1781253047000,-1763.12,0.00014999,2]
[424896356,1781253047000,-1763.12,0.00014999,2]
[424896355,1781253047000,-1763.12,0.00014999,2]
[424896357,1781253047000,-1763.12,0.00014999,2]
[424896359,1781253047000,-1763.12,0.00014999,2]
[424896341,1781253047000,-500.0,0.00014999,2]
[424896349,1781253047000,-1763.12,0.00014999,2]
[424896390,1781253047000,-500.0,0.00014999,2]
[424896388,1781253047000,-502.53527372,0.00014999,2]
[424896415,1781253047000,-925.89,0.00014999,2]
[424896418,1781253047000,-926.07641167,0.00014999,2]
[424896426,1781253047000,-1540.46,0.00014999,2]
[424896417,1781253047000,-925.89,0.00014999,2]
[424896420,1781253047000,-1540.46,0.00014999,2]
[424896419,1781253047000,-1540.46,0.00014999,2]
[424896427,1781253047000,-1540.46,0.00014999,2]
[424896422,1781253047000,-1540.46,0.00014999,2]
[424896425,1781253047000,-1540.46,0.00014999,2]
[424896421,1781253047000,-1540.46,0.00014999,2]
[424896416,1781253047000,-925.89,0.00014999,2]
[424896424,1781253047000,-1540.46,0.00014999,2]
[424896429,1781253047000,-1540.46,0.00014999,2]
[424896430,1781253047000,-1540.46,0.00014999,2]
[424896431,1781253047000,-1540.46,0.00014999,2]
[424896432,1781253047000,-1540.46,0.00014999,2]
[424896433,1781253047000,-1540.46,0.00014999,2]
[424896436,1781253047000,-500.0,0.00014999,2]
[424896435,1781253047000,-1540.67,0.00014999,2]
[424896434,1781253047000,-1540.46,0.00014999,2]
[424896437,1781253047000,-500.0,0.00014999,2]
[424896387,1781253047000,-500.0,0.00014999,2]
[424896428,1781253047000,-1540.46,0.00014999,2]
[424896413,1781253047000,-925.89,0.00014999,2]
[424896423,1781253047000,-1540.46,0.00014999,2]
[424896412,1781253047000,-925.89,0.00014999,2]
[424896384,1781253047000,-500.0,0.00014999,2]
[424896409,1781253047000,-925.89,0.00014999,2]
[424896389,1781253047000,-500.0,0.00014999,2]
[424896391,1781253047000,-500.0,0.00014999,2]
[424896392,1781253047000,-500.0,0.00014999,2]
[424896402,1781253047000,-925.89,0.00014999,2]
[424896393,1781253047000,-500.0,0.00014999,2]
[424896397,1781253047000,-500.0,0.00014999,2]
[424896399,1781253047000,-500.0,0.00014999,2]
[424896398,1781253047000,-500.0,0.00014999,2]
[424896396,1781253047000,-500.0,0.00014999,2]
[424896400,1781253047000,-500.0,0.00014999,2]
[424896401,1781253047000,-329.2463426,0.00014999,2]
[424896394,1781253047000,-500.0,0.00014999,2]
[424896410,1781253047000,-925.89,0.00014999,2]
[424896405,1781253047000,-925.89,0.00014999,2]
[424896411,1781253047000,-925.89,0.00014999,2]
[424896406,1781253047000,-925.89,0.00014999,2]
[424896407,1781253047000,-925.89,0.00014999,2]
[424896408,1781253047000,-925.89,0.00014999,2]
[424896404,1781253047000,-925.89,0.00014999,2]
[424896414,1781253047000,-925.89,0.00014999,2]
[424896395,1781253047000,-500.0,0.00014999,2]
[424896403,1781253047000,-925.89,0.00014999,2]
[424896482,1781253048000,-564.37,0.00014999,2]
[424896466,1781253048000,-564.37,0.00014999,2]
[424896464,1781253048000,-350.9778081,0.00014999,2]
[424896467,1781253048000,-564.37,0.00014999,2]
[424896468,1781253048000,-564.37,0.00014999,2]
[424896474,1781253048000,-564.37,0.00014999,2]
[424896472,1781253048000,-564.37,0.00014999,2]
[424896478,1781253048000,-564.37,0.00014999,2]
[424896475,1781253048000,-564.37,0.00014999,2]
[424896473,1781253048000,-564.37,0.00014999,2]
[424896480,1781253048000,-564.37,0.00014999,2]
[424896479,1781253048000,-564.37,0.00014999,2]
[424896488,1781253048000,-500.0,0.00014999,2]
[424896476,1781253048000,-564.37,0.00014999,2]
[424896477,1781253048000,-564.37,0.00014999,2]
[424896481,1781253048000,-564.37,0.00014999,2]
[424896484,1781253048000,-564.37,0.00014999,2]
[424896483,1781253048000,-564.37,0.00014999,2]
[424896486,1781253048000,-564.58047538,0.00014999,2]
[424896487,1781253048000,-500.0,0.00014999,2]
[424896491,1781253048000,-500.0,0.00014999,2]
[424896490,1781253048000,-505.99849736,0.00014999,2]
[424896485,1781253048000,-564.37,0.00014999,2]
[424896465,1781253048000,-564.37,0.00014999,2]
[424896471,1781253048000,-564.37,0.00014999,2]
[424896462,1781253048000,-500.0,0.00014999,2]
[424896442,1781253048000,-500.0,0.00014999,2]
[424896461,1781253048000,-500.0,0.00014999,2]
[424896489,1781253048000,-500.0,0.00014999,2]
[424896438,1781253048000,-500.0,0.00014999,2]
[424896440,1781253048000,-500.0,0.00014999,2]
[424896444,1781253048000,-500.0,0.00014999,2]
[424896445,1781253048000,-500.0,0.00014999,2]
[424896446,1781253048000,-500.0,0.00014999,2]
[424896441,1781253048000,-500.0,0.00014999,2]
[424896443,1781253048000,-500.0,0.00014999,2]
[424896447,1781253048000,-500.0,0.00014999,2]
[424896439,1781253048000,-500.0,0.00014999,2]
[424896448,1781253048000,-630.34674196,0.00014999,2]
[424896451,1781253048000,-500.0,0.00014999,2]
[424896450,1781253048000,-500.0,0.00014999,2]
[424896453,1781253048000,-500.0,0.00014999,2]
[424896452,1781253048000,-500.0,0.00014999,2]
[424896458,1781253048000,-500.0,0.00014999,2]
[424896457,1781253048000,-500.0,0.00014999,2]
[424896456,1781253048000,-500.0,0.00014999,2]
[424896449,1781253048000,-500.0,0.00014999,2]
[424896455,1781253048000,-500.0,0.00014999,2]
[424896454,1781253048000,-500.0,0.00014999,2]
[424896460,1781253048000,-277.3797404,0.00014999,2]
[424896469,1781253048000,-564.37,0.00014999,2]
[424896459,1781253048000,-500.0,0.00014999,2]
[424896470,1781253048000,-564.37,0.00014999,2]
[424896463,1781253048000,-500.0,0.00014999,2]
[424896493,1781253048000,-500.0,0.00014999,2]
[424896532,1781253048000,-567.77,0.00014999,2]
[424896494,1781253048000,-500.0,0.00014999,2]
[424896527,1781253048000,-567.54,0.00014999,2]
[424896523,1781253048000,-567.54,0.00014999,2]
[424896524,1781253048000,-567.54,0.00014999,2]
[424896522,1781253048000,-567.54,0.00014999,2]
[424896530,1781253048000,-567.54,0.00014999,2]
[424896540,1781253048000,-3153.69,0.00014999,2]
[424896541,1781253048000,-3153.69,0.00014999,2]
[424896546,1781253048000,-3153.69,0.00014999,2]
[424896529,1781253048000,-567.54,0.00014999,2]
[424896531,1781253048000,-567.54,0.00014999,2]
[424896533,1781253048000,-2000.0,0.00014999,2]
[424896528,1781253048000,-567.54,0.00014999,2]
[424896534,1781253048000,-250.0,0.00014999,2]
[424896539,1781253048000,-3153.69,0.00014999,2]
[424896537,1781253048000,-3153.69,0.00014999,2]
[424896536,1781253048000,-3153.69,0.00014999,2]
[424896535,1781253048000,-3153.69,0.00014999,2]
[424896542,1781253048000,-3153.69,0.00014999,2]
[424896543,1781253048000,-3153.69,0.00014999,2]
[424896545,1781253048000,-3153.69,0.00014999,2]
[424896544,1781253048000,-3153.69,0.00014999,2]
[424896548,1781253048000,-3153.69,0.00014999,2]
[424896547,1781253048000,-3153.69,0.00014999,2]
[424896492,1781253048000,-500.0,0.00014999,2]
[424896538,1781253048000,-3153.69,0.00014999,2]
[424896521,1781253048000,-567.54,0.00014999,2]
[424896526,1781253048000,-567.54,0.00014999,2]
[424896520,1781253048000,-567.54,0.00014999,2]
[424896497,1781253048000,-500.0,0.00014999,2]
[424896496,1781253048000,-500.0,0.00014999,2]
[424896495,1781253048000,-500.0,0.00014999,2]
[424896503,1781253048000,-500.0,0.00014999,2]
[424896506,1781253048000,-500.0,0.00014999,2]
[424896505,1781253048000,-500.0,0.00014999,2]
[424896502,1781253048000,-500.0,0.00014999,2]
[424896498,1781253048000,-500.0,0.00014999,2]
[424896499,1781253048000,-500.0,0.00014999,2]
[424896500,1781253048000,-500.0,0.00014999,2]
[424896501,1781253048000,-500.0,0.00014999,2]
[424896525,1781253048000,-567.54,0.00014999,2]
[424896508,1781253048000,-500.0,0.00014999,2]
[424896504,1781253048000,-500.0,0.00014999,2]
[424896507,1781253048000,-500.0,0.00014999,2]
[424896511,1781253048000,-567.54,0.00014999,2]
[424896509,1781253048000,-500.0,0.00014999,2]
[424896516,1781253048000,-567.54,0.00014999,2]
[424896513,1781253048000,-567.54,0.00014999,2]
[424896517,1781253048000,-567.54,0.00014999,2]
[424896512,1781253048000,-567.54,0.00014999,2]
[424896515,1781253048000,-567.54,0.00014999,2]
[424896514,1781253048000,-567.54,0.00014999,2]
[424896518,1781253048000,-567.54,0.00014999,2]
[424896519,1781253048000,-567.54,0.00014999,2]
[424896510,1781253048000,-576.36807872,0.00014999,2]
[424896552,1781253049000,-3153.69,0.00014999,2]
[424896550,1781253049000,-3153.69,0.00014999,2]
[424896549,1781253049000,-3153.69,0.00014999,2]
[424896553,1781253049000,-3153.69,0.00014999,2]
[424896556,1781253049000,-3153.90932665,0.00014999,2]
[424896555,1781253049000,-3153.69,0.00014999,2]
[424896557,1781253049000,-886132.27721103,0.00015,2]
[424896551,1781253049000,-3153.69,0.00014999,2]
[424896558,1781253049000,-16150719.20870334,0.00015,2]
[424896554,1781253049000,-3153.69,0.00014999,2]
[424896559,1781253051000,-3958178.89785261,0.00015,2]
[424896561,1781253051000,-256.73781653,0.00015,2]
[424896562,1781253051000,-496.22891818,0.00015,2]
[424896564,1781253051000,-1047.92,0.00015,2]
[424896560,1781253051000,-917.72276877,0.00015,2]
[424896565,1781253051000,-933.71669306,0.00015,2]
[424896566,1781253051000,-6328.92184006,0.00015,2]
[424896567,1781253051000,-3828.53222985,0.00015,2]
[424896563,1781253051000,-44002.26437185,0.00015,2]
[424896568,1781253051000,-3644.0,0.00014376,2]
[424896569,1781253051000,-5626.88016176,0.00015,2]
[424896570,1781253052000,-1111.3344762,0.00015,2]
[424896571,1781253052000,-24863.75498472,0.00015,2]
[424896572,1781253074000,-703.14928871,0.00011873,2]
[424896573,1781253128000,-153.0,0.00012515,2]
[424896575,1781253181000,-293.92417426,0.00012515,2]
[424896576,1781253234000,-678.03937272,0.00012415,2]
[424896577,1781253288000,-359.21395792,0.00011507,7]
[424896580,1781253341000,-152.0,0.00012415,2]
[424896581,1781253394000,-151.0,0.00012415,2]
[424896582,1781253448000,-150.0,0.00012415,2]
[424896583,1781253501000,-150.0,0.00012415,2]
[424896584,1781253555000,-152.0,0.00012415,2]
[424896585,1781253741000,5000.0,0.00021,120]
[424896586,1781253768000,-166.66,0.00011696,2]
[424896587,1781253822000,-250.0,0.00011819,2]
[424896588,1781253874000,-166.66,0.00011942,2]
[424896592,1781253929000,-150.38,0.00012057,2]
[424896593,1781253929000,-207.0,0.00012061,2]
[424896591,1781253929000,-250.0,0.00012012,2]
[424896590,1781253929000,-160.0,0.00011986,2]
[424896589,1781253929000,-2000.0,0.00011986,2]
[424896594,1781253944000,-291.2,0.00012105,2]
[424896595,1781253944000,-181.74,0.00012125,2]
[424896596,1781253944000,-166.66,0.00012189,2]
[424896597,1781253944000,-194.03959456,0.00012216,2]
[424896598,1781253944000,-188.28840161,0.00012315,2]
[424896599,1781253944000,-151.0,0.00012315,2]
[424896601,1781253944000,-152.0,0.0001232,2]
[424896603,1781253944000,-151.0,0.00012337,2]
[424896602,1781253944000,-151.0,0.0001232,2]
[424896604,1781253944000,-300.0,0.00012411,2]
[424896606,1781253944000,-500.0,0.00012412,2]
[424896605,1781253944000,-150.0,0.00012411,2]
[424896607,1781253944000,-500.0,0.00012412,2]
[424896608,1781253944000,-500.0,0.00012412,2]
[424896600,1781253944000,-153.0,0.00012316,2]
[424896610,1781253945000,-500.0,0.00012412,2]
[424896612,1781253945000,-500.0,0.00012412,2]
[424896611,1781253945000,-500.0,0.00012412,2]
[424896613,1781253945000,-500.0,0.00012412,2]
[424896609,1781253945000,-500.0,0.00012412,2]
[424896614,1781253945000,-500.0,0.00012412,2]
[424896619,1781253945000,-475.71896105,0.00012412,2]
[424896618,1781253945000,-526.97304278,0.00012412,2]
[424896615,1781253945000,-500.0,0.00012412,2]
[424896616,1781253945000,-500.0,0.00012412,2]
[424896617,1781253945000,-500.0,0.00012412,2]
[424896620,1781253959000,-152.0,0.00011533,7]
[424896630,1781253960000,-367.71896105,0.00012412,2]
[424896629,1781253960000,-500.0,0.00012412,2]
[424896627,1781253960000,-500.0,0.00012412,2]
[424896626,1781253960000,-500.0,0.00012412,2]
[424896624,1781253960000,-24.28103895,0.00012412,2]
[424896625,1781253960000,-500.0,0.00012412,2]
[424896623,1781253960000,-152.0,0.00012351,2]
[424896622,1781253960000,-152.0,0.00011556,7]
[424896621,1781253960000,-152.0,0.00011533,7]
[424896628,1781253960000,-500.0,0.00012412,2]
[424896631,1781253982000,-132.28103895,0.00012412,2]
[424896632,1781254035000,-202.21,0.00012352,2]
[424896636,1781254089000,-1151.57,0.00012323,2]
[424896637,1781254110000,-150.0,0.00012324,2]
[424896652,1781254110000,-151.0,0.00012415,2]
[424896651,1781254110000,-150.0,0.00012415,2]
[424896648,1781254110000,-153.0,0.00012415,2]
[424896650,1781254110000,-151.0,0.00012415,2]
[424896647,1781254110000,-150.0,0.00012414,2]
[424896646,1781254110000,-151.0,0.00012414,2]
[424896639,1781254110000,-150.0,0.00012324,2]
[424896649,1781254110000,-151.0,0.00012415,2]
[424896642,1781254110000,-151.0,0.00012352,2]
[424896644,1781254110000,-152.0,0.00012412,2]
[424896643,1781254110000,-150.0,0.00012352,2]
[424896641,1781254110000,-151.0,0.00012352,2]
[424896638,1781254110000,-151.0,0.00012324,2]
[424896640,1781254110000,-151.0,0.00012352,2]
[424896645,1781254110000,-150.0,0.00012414,2]
[424896653,1781254110000,-151.0,0.00012415,2]
[424896660,1781254110000,-151.0,0.00012415,2]
[424896658,1781254110000,-151.0,0.00012415,2]
[424896671,1781254110000,-151.0,0.00012415,2]
[424896667,1781254110000,-151.0,0.00012415,2]
[424896669,1781254110000,-294.0,0.00012415,2]
[424896654,1781254110000,-150.0,0.00012415,2]
[424896668,1781254110000,-152.0,0.00012415,2]
[424896666,1781254110000,-151.0,0.00012415,2]
[424896665,1781254110000,-151.0,0.00012415,2]
[424896670,1781254110000,-152.0,0.00012415,2]
[424896664,1781254110000,-152.0,0.00012415,2]
[424896659,1781254110000,-238.28770062,0.00012415,2]
[424896662,1781254110000,-150.0,0.00012415,2]
[424896661,1781254110000,-150.0,0.00012415,2]
[424896656,1781254110000,-152.0,0.00012415,2]
[424896655,1781254110000,-151.0,0.00012415,2]
[424896657,1781254110000,-151.0,0.00012415,2]
[424896663,1781254110000,-151.0,0.00012415,2]
[424896673,1781254111000,-166.66,0.00012435,2]
[424896672,1781254111000,-150.0,0.00012415,2]
[424896675,1781254111000,-502.69730429,0.00012464,2]
[424896676,1781254111000,-167.35499509,0.00012464,2]
[424896674,1781254111000,-500.0,0.00012464,2]
[424896677,1781254142000,-151.0,0.00012324,2]
[424896678,1781254162000,-152.0,0.00012372,2]
[424896679,1781254162000,-151.0,0.00012372,2]
[424896680,1781254162000,-250.0,0.00012418,2]
[424896683,1781254162000,-500.0,0.00012464,2]
[424896682,1781254162000,-500.0,0.00012464,2]
[424896685,1781254162000,-102.97379481,0.00012464,2]
[424896681,1781254162000,-332.64500491,0.00012464,2]
[424896684,1781254162000,-500.0,0.00012464,2]
[424896686,1781254163000,-151.0,0.00012372,2]
[424896687,1781254163000,-90.29382326,0.00012464,2]
[424896688,1781254165000,-306.73238193,0.00012464,2]
[424896691,1781254165000,-152.0,0.00012515,2]
[424896690,1781254165000,-914.52334,0.00012465,2]
[424896689,1781254165000,-500.0,0.00012464,2]
[424896695,1781254165000,-152.0,0.00012515,2]
[424896692,1781254165000,-151.0,0.00012515,2]
[424896694,1781254165000,-152.0,0.00012515,2]
[424896693,1781254165000,-151.0,0.00012515,2]
[424896696,1781254165000,-151.0,0.00012515,2]
[424896698,1781254165000,-152.0,0.00012515,2]
[424896700,1781254165000,-1151.57,0.00012632,2]
[424896701,1781254165000,-200.0,0.00012652,2]
[424896703,1781254165000,-167.54,0.00012707,2]
[424896702,1781254165000,-166.66,0.00012681,2]
[424896704,1781254165000,-1278.82,0.00012808,2]
[424896705,1781254165000,-157.14213509,0.00012921,2]
[424896706,1781254165000,-166.66,0.00012927,2]
[424896707,1781254165000,-1151.57,0.0001294,2]
[424896708,1781254165000,-1000.0,0.0001301,2]
[424896709,1781254165000,-160.0,0.00013082,2]
[424896710,1781254165000,-422.33150498,0.00013137,2]
[424896697,1781254165000,-151.0,0.00012515,2]
[424896699,1781254165000,-150.0,0.00012555,2]
[424896711,1781254169000,-77.66849502,0.00013137,2]
[424896712,1781254169000,-1151.57,0.00013248,2]
[424896714,1781254169000,-916.77978407,0.00013484,2]
[424896713,1781254169000,-167.54,0.00013406,2]
[424896715,1781254174000,-776.16,0.00013484,2]
[424896716,1781254196000,-307.06021593,0.00013484,2]
[424896835,1781254249000,-1151.57,0.00013556,2]
[424896830,1781254249000,-150.0,0.00013488,2]
[424896832,1781254249000,-150.0,0.00013488,2]
[424896828,1781254249000,-456.0,0.00013486,2]
[424896833,1781254249000,-150.0,0.00013488,2]
[424896834,1781254249000,-150.0,0.00013488,2]
[424896827,1781254249000,-455.0,0.00013486,2]
[424896829,1781254249000,-457.0,0.00013486,2]
[424896823,1781254249000,-156.25866142,0.00013486,2]
[424896825,1781254249000,-457.0,0.00013486,2]
[424896826,1781254249000,-453.0,0.00013486,2]
[424896821,1781254249000,-151.0,0.00013484,2]
[424896822,1781254249000,-287.0,0.00013485,2]
[424896824,1781254249000,-296.74133858,0.00013486,2]
[424896819,1781254249000,-137.82920534,0.0001323,2]
[424896836,1781254249000,-300.54830225,0.00013587,2]
[424896818,1781254249000,-452.0,0.0001323,2]
[424896817,1781254249000,-47.13755716,0.00013038,2]
[424896816,1781254249000,-397.86244284,0.00013038,2]
[424896814,1781254249000,-153.0,0.00012719,2]
[424896813,1781254249000,-151.0,0.00012528,2]
[424896815,1781254249000,-441.0,0.00013038,2]
[424896812,1781254249000,-151.0,0.00012464,2]
[424896820,1781254249000,-312.17079466,0.0001323,2]
[424896831,1781254249000,-150.0,0.00013488,2]
[424896858,1781254249000,-500.0,0.00013698,2]
[424896838,1781254249000,-250.0,0.00013609,2]
[424896837,1781254249000,-2500.0,0.00013598,2]
[424896861,1781254249000,-500.0,0.00013698,2]
[424896854,1781254249000,-500.0,0.00013698,2]
[424896853,1781254249000,-500.0,0.00013698,2]
[424896862,1781254249000,-500.0,0.00013698,2]
[424896859,1781254249000,-386.43047538,0.00013698,2]
[424896860,1781254249000,-500.0,0.00013698,2]
[424896852,1781254249000,-364.35142186,0.00013698,2]
[424896855,1781254249000,-500.0,0.00013698,2]
[424896851,1781254249000,-500.0,0.00013698,2]
[424896857,1781254249000,-500.0,0.00013698,2]
[424896856,1781254249000,-500.0,0.00013698,2]
[424896847,1781254249000,-500.0,0.00013698,2]
[424896849,1781254249000,-500.0,0.00013698,2]
[424896839,1781254249000,-161.88253104,0.0001364,2]
[424896850,1781254249000,-500.0,0.00013698,2]
[424896841,1781254249000,-4181.1272,0.00013641,2]
[424896842,1781254249000,-57338.17909312,0.00013641,2]
[424896840,1781254249000,-182.41411244,0.00013641,2]
[424896845,1781254249000,-250.0,0.00013653,2]
[424896848,1781254249000,-500.0,0.00013698,2]
[424896846,1781254249000,-574.57860626,0.00013698,2]
[424896844,1781254249000,-250.0,0.00013653,2]
[424896843,1781254249000,-1284.51700688,0.00013641,2]
[424896882,1781254250000,-500.0,0.00013698,2]
[424896890,1781254250000,-500.0,0.00013698,2]
[424896883,1781254250000,-500.0,0.00013698,2]
[424896887,1781254250000,-500.0,0.00013698,2]
[424896898,1781254250000,-500.0,0.00013698,2]
[424896894,1781254250000,-500.0,0.00013698,2]
[424896888,1781254250000,-500.0,0.00013698,2]
[424896892,1781254250000,-500.0,0.00013698,2]
[424896889,1781254250000,-500.0,0.00013698,2]
[424896901,1781254250000,-500.0,0.00013698,2]
[424896895,1781254250000,-500.0,0.00013698,2]
[424896893,1781254250000,-500.0,0.00013698,2]
[424896896,1781254250000,-500.0,0.00013698,2]
[424896899,1781254250000,-500.0,0.00013698,2]
[424896904,1781254250000,-500.0,0.00013698,2]
[424896902,1781254250000,-500.0,0.00013698,2]
[424896907,1781254250000,-520.25,0.00013698,2]
[424896879,1781254250000,-500.0,0.00013698,2]
[424896897,1781254250000,-500.0,0.00013698,2]
[424896880,1781254250000,-500.0,0.00013698,2]
[424896867,1781254250000,-500.0,0.00013698,2]
[424896884,1781254250000,-500.0,0.00013698,2]
[424896873,1781254250000,-500.0,0.00013698,2]
[424896874,1781254250000,-500.0,0.00013698,2]
[424896872,1781254250000,-621.59,0.00013698,2]
[424896864,1781254250000,-500.0,0.00013698,2]
[424896863,1781254250000,-505.99849736,0.00013698,2]
[424896869,1781254250000,-500.0,0.00013698,2]
[424896865,1781254250000,-500.0,0.00013698,2]
[424896866,1781254250000,-500.0,0.00013698,2]
[424896885,1781254250000,-630.34674196,0.00013698,2]
[424896905,1781254250000,-576.36807872,0.00013698,2]
[424896871,1781254250000,-500.0,0.00013698,2]
[424896870,1781254250000,-500.0,0.00013698,2]
[424896876,1781254250000,-500.0,0.00013698,2]
[424896875,1781254250000,-500.0,0.00013698,2]
[424896878,1781254250000,-500.0,0.00013698,2]
[424896877,1781254250000,-500.0,0.00013698,2]
[424896886,1781254250000,-500.0,0.00013698,2]
[424896881,1781254250000,-500.0,0.00013698,2]
[424896868,1781254250000,-500.0,0.00013698,2]
[424896900,1781254250000,-500.0,0.00013698,2]
[424896891,1781254250000,-500.0,0.00013698,2]
[424896910,1781254250000,-520.25,0.00013698,2]
[424896927,1781254250000,-520.25,0.00013698,2]
[424896928,1781254250000,-520.25,0.00013698,2]
[424896931,1781254250000,-2890.89,0.00013698,2]
[424896933,1781254250000,-169.17357682,0.00013698,2]
[424896934,1781254250000,-1254.41808677,0.00013698,2]
[424896936,1781254250000,-1382.8945148,0.00013698,2]
[424896935,1781254250000,-1467.29833641,0.00013698,2]
[424896938,1781254250000,-2839.28241459,0.000127,2]
[424896937,1781254250000,-539.294502,0.000127,2]
[424896939,1781254250000,-37455.96308341,0.000127,2]
[424896941,1781254250000,-2890.89,0.00013698,2]
[424896942,1781254250000,-2890.89,0.00013698,2]
[424896944,1781254250000,-2890.89,0.00013698,2]
[424896946,1781254250000,-2890.89,0.00013698,2]
[424896948,1781254250000,-2890.89,0.00013698,2]
[424896947,1781254250000,-2890.89,0.00013698,2]
[424896945,1781254250000,-2890.89,0.00013698,2]
[424896943,1781254250000,-2890.89,0.00013698,2]
[424896903,1781254250000,-500.0,0.00013698,2]
[424896930,1781254250000,-2890.89,0.00013698,2]
[424896929,1781254250000,-520.36,0.00013698,2]
[424896940,1781254250000,-1507.9954852,0.00013698,2]
[424896926,1781254250000,-520.25,0.00013698,2]
[424896909,1781254250000,-520.25,0.00013698,2]
[424896932,1781254250000,-2890.89,0.00013698,2]
[424896908,1781254250000,-520.25,0.00013698,2]
[424896906,1781254250000,-520.25,0.00013698,2]
[424896912,1781254250000,-520.25,0.00013698,2]
[424896911,1781254250000,-520.25,0.00013698,2]
[424896914,1781254250000,-520.25,0.00013698,2]
[424896913,1781254250000,-520.25,0.00013698,2]
[424896917,1781254250000,-520.25,0.00013698,2]
[424896916,1781254250000,-520.25,0.00013698,2]
[424896915,1781254250000,-520.25,0.00013698,2]
[424896919,1781254250000,-520.25,0.00013698,2]
[424896920,1781254250000,-520.25,0.00013698,2]
[424896918,1781254250000,-520.25,0.00013698,2]
[424896921,1781254250000,-520.25,0.00013698,2]